Cogmind - Beta 12 @@@ ROGUE MODE // 2023.07.15 @ 22:29:35 Player: hanzu Result: Destroyed by Defender 3a with Beam Rifle Performance ------------- Evolutions (2) 1000 Regions Visited (6) 1200 Robots Destroyed (83) 415 Value Destroyed (3113) 3113 Prototype IDs (43) 860 Alien Tech Used (0) 0 Bonus (1460) 1460 TOTAL SCORE: 8048 Bonus ------- High Alert Combat Kills 425 Follower Combat Kills 35 Entered Garrisons 200 Used RIF Installer 500 Aligned with FarCom 300 Cogmind --------- Core Integrity 0/550 Matter 275/300 Energy 100/100 System Corruption 7% Temperature Cool (9) Movement Core (750) Ox14 Location -8/Garrison Parts ------- > --- POWER (1) -------- (None) > --- PROPULSION (2) --- (None) > --- UTILITY (6) ------ Improved Heat Sink High-capacity Storage Unit Relay Coupler [Sentry] (11) > --- WEAPON (2) ------- Heavy Hammer > --- INVENTORY (20) --- Improved Signal Interpreter Authchip [R/NC] Authchip [R/Combat] Authchip [R/Combat] Authchip [R/Combat] Authchip [R/Combat] Authchip [R/Combat] Authchip [R/Combat] Authchip [R/Combat] Authchip [R/Combat] Authchip [R/Combat] Authchip [R/Combat] Relay Coupler [NC] (24) Relay Coupler [Grunt] (23) Relay Coupler [Grunt] (31) Advanced Beam Rifle Advanced Beam Rifle Guided Plasma Cannon Gauss Rifle Datajack Peak State ------------ > --- POWER ------------ Light Deuterium Engine > --- PROPULSION ------- Armored Treads Armored Treads > --- UTILITY ---------- Heat Sink Improved Heat Sink High-capacity Storage Unit Heavy Armor Plating Improved Light Armor Plating > --- WEAPON ----------- Guided Plasma Cannon Heavy Hammer > --- INVENTORY -------- Improved Signal Interpreter Authchip [R/NC] Authchip [R/Combat] Authchip [R/Combat] Authchip [R/Combat] Authchip [R/Combat] Authchip [R/Combat] Authchip [R/Combat] Authchip [R/Combat] Relay Coupler [Grunt] Relay Coupler [Duelist] Relay Coupler [Demolisher] Heavy Particle Gun Advanced Beam Rifle Advanced Beam Rifle Gauss Rifle Assault Cannon Mini Grenade Launcher Mini Grenade Launcher Datajack [Rating: 40] Favorites ----------- Power Light Nuclear Core Engine Ion Engine Power Core Light Nuclear Core Propulsion Armored Treads Treads Armored Treads Wheel Wheel Utility Improved Light Armor Plating Device Improved Heat Sink Storage High-capacity Storage Unit Processor Advanced Visual Processing Unit Hackware Relay Coupler [Sentry] Protection Improved Light Armor Plating Weapon Heavy Hammer Energy Gun Medium Laser Energy Cannon Guided Plasma Cannon Ballistic Gun Heavy Assault Rifle Ballistic Cannon Assault Cannon Launcher Mini Grenade Launcher Impact Weapon Heavy Hammer Special Melee Weapon Datajack Build | -11 -10 -10 -10 -9 -8 -8 ------- Run | Jun Mat Min Exi Min Mat Gar Slots Evolved 4 | . . . . . 4 . Power . | . . . . . . . Propulsion . | . . . . . . . Utility 4 | . . . . . 4 . Weapon . | . . . . . . . Parts Attached 66 | 6 4 . 4 . 39 13 Power 6 | 1 . . . . 3 2 Engine 4 | 1 . . . . 2 1 Core 2 | . . . . . 1 1 Reactor . | . . . . . . . Propulsion 13 | 2 1 . . . 10 . Treads 4 | . . . . . 4 . Leg . | . . . . . . . Wheel 9 | 2 1 . . . 6 . Hover . | . . . . . . . Flight . | . . . . . . . Utility 25 | 1 3 . 2 . 13 6 Device 7 | . 2 . . . 2 3 Storage 5 | 1 1 . 2 . 1 . Processor 1 | . . . . . 1 . Hackware 1 | . . . . . . 1 Protection 11 | . . . . . 9 2 Artifact . | . . . . . . . Weapon 22 | 2 . . 2 . 13 5 Energy Gun 7 | 2 . . 1 . 4 . Energy Cannon 2 | . . . . . 2 . Ballistic Gun 3 | . . . . . 3 . Ballistic Cannon 2 | . . . . . 2 . Launcher 1 | . . . . . . 1 Special Weapon . | . . . . . . . Impact Weapon 4 | . . . . . 2 2 Slashing Weapon . | . . . . . . . Piercing Weapon . | . . . . . . . Special Melee Weapon 3 | . . . 1 . . 2 Unidentified Prototypes 2 | . . . . . 2 . Parts Lost 21 | . 1 . . 3 10 7 Power 4 | . . . . 1 1 2 Propulsion 9 | . 1 . . 1 5 2 Utility 6 | . . . . . 4 2 Weapon 2 | . . . . 1 . 1 Highest Loss Streak 7 | . 1 . . 2 7 5 To Critical Strikes . | . . . . . . . Average Slot Usage (%) 86 | . 97 85 84 80 84 86 Engine 5 | . 14 14 14 14 3 2 Core 4 | . . . . . 4 6 Treads 9 | . . . . . 7 17 Wheel 9 | . 28 28 28 23 8 . Device 9 | . 11 . . . 5 15 Storage 9 | . 14 14 14 14 9 9 Processor 1 | . . . . . 3 . Protection 15 | . . . . . 23 15 Energy Gun 6 | . 28 28 14 14 5 . Energy Cannon 1 | . . . . . 2 1 Ballistic Gun 1 | . . . . . 2 . Ballistic Cannon 1 | . . . . . 3 . Launcher 2 | . . . . . . 6 Impact Weapon 4 | . . . . . 3 7 Special Melee Weapon 1 | . . . 13 14 . 1 Naked Turns . | . . . . . . . Heaviest Build 78 | 14 30 29 28 28 77 78 Greatest Support 40 | 26 26 26 26 26 40 40 Greatest Overweight (x) 17 | . 1 1 1 1 17 14 Average Overweight (x) 1 | . . 1 1 1 2 1 Largest Inventory Capacity 35 | 8 15 15 35 15 20 20 Average Capacity 18 | 6 14 15 15 15 18 20 Most Carried 20 | 4 8 8 12 10 20 20 Average Carried 14 | 1 4 8 9 8 13 18 Final Capacity 20 | 8 15 15 15 15 20 20 Final Carried 20 | 1 8 8 10 7 20 20 Class Distribution -------------------- 95% | Mutant 4% | Bothacker-Mutant Dominant Class ---------------- Mutant | -10/Materials Mutant | -10/Mines Mutant | -10/Exiles Mutant | -9/Mines Mutant | -8/Materials Mutant | -8/Garrison Resources | -11 -10 -10 -10 -9 -8 -8 ----------- Run | Jun Mat Min Exi Min Mat Gar Matter Collected 1759 | 250 98 36 136 15 964 260 Remotely 96 | . 96 . . . . . Salvage Created 2745 | . 517 53 . 16 1439 720 Parts 145 | . 38 7 . 1 78 21 Haulers Intercepted 2 | . . . . . 2 . Recyclers Shooed 2 | . 1 . . . 1 . Parts Field Recycled . | . . . . . . . Retrieved Matter . | . . . . . . . Parts Self-Destructed . | . . . . . . . Prevented . | . . . . . . . Kills | -11 -10 -10 -10 -9 -8 -8 ------- Run | Jun Mat Min Exi Min Mat Gar Combat Hostiles Destroyed 61 | . 11 3 . 1 24 22 Melee 3 | . . . . . . 3 Guns 30 | . 11 3 . 1 15 . Cannons 13 | . . . . . 9 4 AOE 9 | . . . . . . 9 Classes Destroyed 13 | . 5 . . . 6 2 Worker 7 | . 3 . . . 4 . Builder 4 | . . . . . 4 . Hauler 2 | . . . . . 2 . Recycler 4 | . 1 . . . 3 . Operator 1 | . . . . . 1 . Watcher 4 | . 2 . . . 2 . Swarmer 14 | . 6 3 . 1 4 . Grunt 28 | . 5 . . . 11 12 Brawler 1 | . . . . . . 1 Duelist 3 | . . . . . 1 2 Sentry 9 | . . . . . 7 2 Hunter 3 | . . . . . 1 2 Programmer 3 | . . . . . . 3 Best Kill Streak 9 | . 9 3 . 1 6 4 Combat Bots Only 5 | . 5 3 . 1 5 4 Max Kills in Single Turn 2 | . 2 2 . 1 2 2 Gunslinging 1 | . . 1 . . 1 . Exploded 2 | . . . . . . 2 Melee 1 | . . . . . . 1 Uniques/NPCs Destroyed . | . . . . . . . Combat | -11 -10 -10 -10 -9 -8 -8 -------- Run | Jun Mat Min Exi Min Mat Gar Damage Taken 4326 | . 313 16 . 204 1889 1904 Core 736 | . 71 . . 103 240 322 Absorbed by Shields . | . . . . . . . Regen/Repaired (Parts) 113 | . . . . . 113 . Core Remaining (%) 65 | 100 . . . 30 . . Volleys Fired 210 | . 34 2 . 11 128 35 Largest 2 | . 2 2 . 1 2 1 Hottest 122 | . 90 90 . 50 122 120 Shots Fired 332 | . 63 4 . 11 220 34 Gun 195 | . 63 4 . 11 117 . Cannon 118 | . . . . . 103 15 Launcher 19 | . . . . . . 19 Special . | . . . . . . . Kinetic 144 | . . . . . 144 . Thermal 133 | . 29 2 . 11 76 15 Explosive 19 | . . . . . . 19 Electromagnetic 36 | . 34 2 . . . . Robot Hit Streak 16 | . 5 4 . 3 14 16 Robot Miss Streak 5 | . 4 . . 2 5 . Penetration Max . | . . . . . . . Secondary Targets 4 | . . 1 . . 3 . Max Gunslinging Chain 1 | . . 1 . . 1 . Shots Hit Robots 227 | . 34 3 3 6 133 48 Core Hits 112 | . 20 3 . 1 58 30 Critical Kills . | . . . . . . . Critical Parts Destroyed 7 | . . . . . . 7 Critical Strikes 15 | . 2 . . 1 5 7 Burn 8 | . 2 . . 1 5 . Smash 7 | . . . . . . 7 Melee Attacks 68 | . . . 3 . 4 61 Impact 61 | . . . . . 4 57 Slashing . | . . . . . . . Piercing . | . . . . . . . Sneak Attacks 4 | . . . 3 . . 1 Combat Hostiles 1 | . . . . . . 1 Follow-up Attacks . | . . . . . . . Damage Inflicted 7068 | . 539 37 . 68 3190 3234 Guns 2080 | . 476 37 . 68 1499 . Cannons 2255 | . . . . . 1691 564 Explosions 1289 | . 63 . . . . 1226 Melee 1444 | . . . . . . 1444 Ramming . | . . . . . . . Kinetic 1922 | . . . . . 1922 . Thermal 2161 | . 248 13 . 68 1268 564 Explosive 1226 | . . . . . . 1226 Electromagnetic 315 | . 291 24 . . . . Impact 1444 | . . . . . . 1444 Slashing . | . . . . . . . Piercing . | . . . . . . . Highest Corruption 7 | . . . . . . 7 Average Corruption 5 | . . . . . . 5 Corruption Purged . | . . . . . . . Corruption Blocked . | . . . . . . . Effects 2 | . . . . . . 2 Energy Discharges 1 | . . . . . . 1 Weapon Failures 1 | . . . . . . 1 Overload Shots . | . . . . . . . Overflow Damage 312 | . . . . . 22 290 Projectiles 22 | . . . . . 22 . Explosions 10 | . . . . . . 10 Melee 280 | . . . . . . 280 Knockbacks 15 | . . . . . 11 4 Impact 4 | . . . . . . 4 Kinetic 11 | . . . . . 11 . Secondary . | . . . . . . . Self-Inflicted Damage 155 | . . . . . . 155 Shots 6 | . . . . . . 6 Rammed . | . . . . . . . Targets Rammed . | . . . . . . . Kicked . | . . . . . . . Crushed . | . . . . . . . Highest Temperature 347 | . 294 60 . 100 347 301 Average Temperature 117 | . 80 33 . 47 130 179 Received Heat Transfer 1569 | . 78 . . 33 873 585 Effects 3 | . . . . . 2 1 Short Circuit 3 | . . . . . 2 1 Siege Activations . | . . . . . . . Robots Corrupted . | . . . . . . . Combat Hostiles . | . . . . . . . Parts Fried 8 | . . . . . . 8 Impact Corruptions 16 | . . . . . . 16 Robots Melted . | . . . . . . . Combat Hostiles . | . . . . . . . Parts Melted 9 | . 3 . . . 5 1 Heat Transferred 5042 | . 803 37 . 259 2743 1200 Parts Sabotaged . | . . . . . . . Parts Stolen . | . . . . . . . Parts Stripped . | . . . . . . . Power Chain Reactions 1 | . 1 . . . . . Missiles Intercepted . | . . . . . . . Alert | -11 -10 -10 -10 -9 -8 -8 ------- Run | Jun Mat Min Exi Min Mat Gar Peak Influence 1297 | . 288 156 . 35 474 1297 Initial 251 | . . 86 . . 5 251 Average 422 | . 120 111 . 8 221 780 Maximum Alert Level 4 | . 1 . . . 2 4 Low Security (%) 34 | 100 72 100 . 100 48 . Level 1 19 | . 27 . . . 29 7 Level 2 21 | . . . . . 22 29 Level 3 19 | . . . . . . 49 Level 4 5 | . . . . . . 13 Level 5 . | . . . . . . . High Security . | . . . . . . . Max Security . | . . . . . . . Squads Dispatched 4 | . 1 . . . 3 . Investigation 2 | . 1 . . . 1 . Extermination . | . . . . . . . Reinforcement 2 | . . . . . 2 . Assault . | . . . . . . . Garrison . | . . . . . . . Intercept . | . . . . . . . Searches Triggered . | . . . . . . . Construction Impeded . | . . . . . . . Haulers Reinforced . | . . . . . . . Active Scanning Responses . | . . . . . . . Cargo Convoy Interrupts . | . . . . . . . Stealth | -11 -10 -10 -10 -9 -8 -8 --------- Run | Jun Mat Min Exi Min Mat Gar Distress Signals 6 | . . . . . 6 . Communications Jammed . | . . . . . . . Distress Signals . | . . . . . . . Times Spotted 90 | . 17 3 . 7 39 24 Peak Tracking Total 7 | . 4 3 . 4 7 4 Tactical Retreats 6 | . 2 . . 1 . 3 Traps | -11 -10 -10 -10 -9 -8 -8 ------- Run | Jun Mat Min Exi Min Mat Gar Traps Triggered 6 | . 1 . . . . 5 Indirectly . | . . . . . . . Trap Hack Attempts 20 | . . . . . . 20 Triggered . | . . . . . . . Disarmed . | . . . . . . . Reprogrammed 1 | . . . . . . 1 Reused . | . . . . . . . Traps Extracted . | . . . . . . . Installed . | . . . . . . . Triggered . | . . . . . . . Exploded 2 | . . . . 2 . . Machines | -11 -10 -10 -10 -9 -8 -8 ---------- Run | Jun Mat Min Exi Min Mat Gar Machines Disabled 5 | . . . . . 1 4 Max in Single Turn 1 | . . . . . 1 1 Garrison Relay 3 | . . . . . . 3 Machines Repaired . | . . . . . . . Machines Sabotaged . | . . . . . . . Overloaded Fab Kills . | . . . . . . . Hacking | -11 -10 -10 -10 -9 -8 -8 --------- Run | Jun Mat Min Exi Min Mat Gar Machines Accessed 29 | . 9 . 2 . 14 4 Terminals 19 | . 6 . . . 9 4 Fabricators . | . . . . . . . Repair Stations 2 | . 1 . . . 1 . Recycling Units 3 | . 2 . . . 1 . Scanalyzers 2 | . . . . . 2 . Garrison Access 1 | . . . . . 1 . Total Hacks 88 | . 32 . 2 . 47 7 Successful 47 | . 16 . 2 . 27 2 Failed 40 | . 15 . . . 20 5 Catastrophic 3 | . . . . . 2 1 Database Lockouts 1 | . 1 . . . . . Manual 54 | . 24 . 1 . 28 1 Terminals 62 | . 23 . . . 32 7 Fabricators . | . . . . . . . Repair Stations 6 | . 2 . . . 4 . Recycling Units 8 | . 7 . . . 1 . Scanalyzers 9 | . . . . . 9 . Garrison Access 1 | . . . . . 1 . Terminal Hacks 22 | . 6 . 2 . 12 2 Record 1 | . . . 1 . . . Robot Schematic 4 | . 2 . . . 2 . Robot Analysis 8 | . 2 . . . 6 . Prototype ID Bank 3 | . 1 . . . 2 . Terminal Index 1 | . . . . . 1 . Locate Traps 2 | . 1 . . . 1 . Garrison Registry 1 | . . . . . . 1 Security Stations 1 | . . . . . . 1 EX-Prototype ID Bank 1 | . . . 1 . . . Fabricator Hacks . | . . . . . . . Repair Station Hacks 2 | . . . . . 2 . Scan Component 1 | . . . . . 1 . Repair 1 | . . . . . 1 . Recycling Unit Hacks 3 | . 2 . . . 1 . Retrieve Components 3 | . 2 . . . 1 . Scanalyzer 7 | . . . . . 7 . Insert Component 3 | . . . . . 3 . Analyze 4 | . . . . . 4 . Garrison Access Hacks 1 | . . . . . 1 . Unlock Access 1 | . . . . . 1 . Unauthorized Hacks 12 | . 8 . . . 4 . Terminals 8 | . 5 . . . 3 . Botnet 7 | . 4 . . . 3 . Operators 1 | . 1 . . . . . Fabricators . | . . . . . . . Repair Stations 2 | . 1 . . . 1 . Mechanics 2 | . 1 . . . 1 . Recycling Units 2 | . 2 . . . . . Reject 1 | . 1 . . . . . Mask 1 | . 1 . . . . . Scanalyzers . | . . . . . . . Garrison Access . | . . . . . . . Data Cores Recovered 1 | . . . . . 1 . Used . | . . . . . . . Hacking Detections 24 | . 9 . . . 12 3 Full Trace Events 4 | . 2 . . . 1 1 Feedback Events . | . . . . . . . Feedback Blocked . | . . . . . . . Robot Schematics Acquired 4 | . 2 . . . 2 . Robots Built . | . . . . . . . Authchips . | . . . . . . . Time . | . . . . . . . Total Robot Build Rating . | . . . . . . . Part Schematics Acquired 3 | . . . . . 3 . Parts Built . | . . . . . . . Authchips . | . . . . . . . Time . | . . . . . . . Total Part Build Rating . | . . . . . . . Parts Repaired 1 | . . . . . 1 . Time 38 | . . . . . 38 . Parts Recycled . | . . . . . . . Recycled Matter . | . . . . . . . Retrieved Matter . | . . . . . . . Retrieved Components 14 | . 4 . . . 10 . Parts Scanalyzed 3 | . . . . . 3 . Part Schematics Acquired 3 | . . . . . 3 . Parts Damaged 1 | . . . . . 1 . Bothacking | -11 -10 -10 -10 -9 -8 -8 ------------ Run | Jun Mat Min Exi Min Mat Gar Used RIF Installer 1 | . . . . . . 1 Robots Hacked 4 | . . . 3 . . 1 Non-combat 2 | . . . 2 . . . Combat 2 | . . . 1 . . 1 Robot Hacks Applied 4 | . . . 3 . . 1 parse_system 3 | . . . 3 . . . formatsys_high 1 | . . . . . . 1 Relay Couplers Released 12 | . . . . . . 12 Machine Destruction 12 | . . . . . . 12 Attached 1 | . . . . . . 1 Fabnet Peak Effective % . | . . . . . . . Robots Rewired . | . . . . . . . Allies Hacked . | . . . . . . . Hacks Repelled . | . . . . . . . Allies | -11 -10 -10 -10 -9 -8 -8 -------- Run | Jun Mat Min Exi Min Mat Gar Total Allies 1 | . . . . . . 1 Largest Group 1 | . . . . . . 1 Highest-Rated Group 15 | . . . . . . 15 Highest-Rated Ally 15 | . . . . . . 15 Total Orders . | . . . . . . . Ally Attacks 2 | . . . . . . 2 Total Damage 14 | . . . . . . 14 Kills 1 | . . . . . . 1 Allies Corrupted . | . . . . . . . Allies Melted . | . . . . . . . Intel | -11 -10 -10 -10 -9 -8 -8 ------- Run | Jun Mat Min Exi Min Mat Gar Robot Analysis Total 8 | . 2 . . . 6 . Derelict Logs Recovered . | . . . . . . . Drone Launches . | . . . . . . . Drone Recoveries . | . . . . . . . Exploration | -11 -10 -10 -10 -9 -8 -8 ------------- Run | Jun Mat Min Exi Min Mat Gar Turns Passed 5245 | 38 518 58 328 126 2240 1937 Spaces Moved 2389 | 31 354 47 291 59 965 642 Core 12 | 7 . . . . 3 2 Treads 957 | . . . . . 317 640 Legs . | . . . . . . . Wheels 1420 | 24 354 47 291 59 645 . Hover . | . . . . . . . Flight . | . . . . . . . Fastest Speed 50 | 50 90 105 105 105 90 250 Average Speed 169 | 80 104 105 105 108 169 251 Slowest Speed 900 | 90 115 105 105 115 900 750 Overloaded Moves . | . . . . . . . Propulsion Burnouts . | . . . . . . . Robots Hopped . | . . . . . . . Cave-ins Triggered . | . . . . . . . Exploration Rate (%) 42 | 3 59 10 64 6 78 80 Regions Visited 6 Branch Regions 3 Pre-discovered Areas 1 | . . . 1 . . . Known Exits Taken 1 | . . . . . 1 . Unknown Exits Taken 5 | 1 1 1 1 1 . . Scrap Searched . | . . . . . . . Spaces Dug 4 | . . . . . 4 . Terrain Destroyed 73 | . 2 . . . 17 54 Melee 4 | . . . . . 4 . Projectile 13 | . . . . . 13 . AOE 56 | . 2 . . . . 54 Terrain Rammed . | . . . . . . . Walls Destroyed . | . . . . . . . Machines Disabled . | . . . . . . . Actions | -11 -10 -10 -10 -9 -8 -8 --------- Run | Jun Mat Min Exi Min Mat Gar Total 3137 | 43 441 51 314 111 1344 833 Wait 247 | . 36 3 . 39 154 15 Move 2383 | 30 353 46 290 58 964 642 Hop . | . . . . . . . Pick Up 96 | 7 11 . 13 . 43 22 Fast Attach . | . . . . . . . Attach 40 | 6 3 . 4 . 22 5 Detach . | . . . . . . . Swap 26 | . 1 . . . 17 8 Drop 42 | . 3 . 4 3 12 20 Fire 210 | . 34 2 . 11 128 35 Melee 68 | . . . 3 . 4 61 Ram . | . . . . . . . Kick . | . . . . . . . Crush . | . . . . . . . Escape Stasis 4 | . . . . . . 4 Rewire 1 | . . . . . . 1 Trap 20 | . . . . . . 20 Miscellaneous . | . . . . . . . Route ------- -11/Junkyard -10/Materials -10/Mines -10/Exiles -9/Mines -8/Materials (discovered 4 exits: [*Fac x3] / Gar) -8/Garrison (discovered 3 exits: [*Fac x3]) History --------- Turn | Location | Event 8 | -11/Junkyard | Discovered new exit (range 16) 39 | -11/Junkyard | Entered Materials 311 | -10/Materials | Build established: Mutant 454 | -10/Materials | Discovered new exit (range 7) 515 | -10/Materials | Central database locked down 557 | -10/Materials | Entered Mines 610 | -10/Mines | Deemed a non-threat by the Exiles lab entrance 611 | -10/Mines | Discovered new exit (range 5) 615 | -10/Mines | Entered Exiles 666 | -10/Exiles | Met 8R-AWN 684 | -10/Exiles | Met EX-HEX 715 | -10/Exiles | Met EX-BIN 726 | -10/Exiles | Aligned with FarCom system 727 | -10/Exiles | Given EX-Vault access code 753 | -10/Exiles | Opened EX-Vault 761 | -10/Exiles | Found Gui. Plasma Cannon 783 | -10/Exiles | Warned to stay clear of 0b10 Research branches 812 | -10/Exiles | Met EX-DEC 843 | -10/Exiles | Learned location of Zion (-6) 935 | -10/Exiles | Discovered new exit (range 10) 943 | -10/Exiles | Left Exiles lab with Gui. Plasma Cannon 943 | -10/Exiles | Entered Mines 1061 | -9/Mines | Discovered new exit (range 6) 1062 | -9/Mines | Core integrity fell below 50% 1069 | -9/Mines | Entered Materials 1069 | -8/Materials | Evolved 4 slots: Utility x4 1478 | -8/Materials | Discovered new exit (range 7) 1929 | -8/Materials | Repaired Assault Cannon 1946 | -8/Materials | Discovered new exit (range 10) 2071 | -8/Materials | Lost 7 parts (1p2n4u) 3082 | -8/Materials | Discovered new exit (range 16) 3307 | -8/Materials | Identified exit to Garrison 3309 | -8/Materials | Entered Garrison 3408 | -8/Garrison | Learned Factory security intel 3422 | -8/Garrison | Triggered checkpoint 3456 | -8/Garrison | Garrison Relay disabled 3741 | -8/Garrison | Triggered checkpoint 3844 | -8/Garrison | Discovered new exit (range 11) 3910 | -8/Garrison | Triggered checkpoint 4000 | -8/Garrison | Garrison Relay disabled 4305 | -8/Garrison | Triggered checkpoint 4441 | -8/Garrison | Discovered new exit (range 8) 4540 | -8/Garrison | Triggered checkpoint 4598 | -8/Garrison | Installed Relay Interface Framework 4694 | -8/Garrison | Triggered checkpoint 4809 | -8/Garrison | Discovered new exit (range 61) 4809 | -8/Garrison | Discovered new exit (range 51) 4809 | -8/Garrison | Discovered new exit (range 12) 4980 | -8/Garrison | Garrison Relay disabled 5193 | -8/Garrison | Core integrity fell below 50% 5196 | -8/Garrison | P-60 Hacker assimilated allied Defender 3a 5224 | -8/Garrison | Core integrity fell below 20% 5246 | -8/Garrison | Destroyed by Defender 3a with Beam Rifle Last Messages --------------- 05203_ P-60 Hacker system corrupted by crushing effect. 05205_ Defender 3a reactivates. 05205_ P-60 Hacker knocked back. 05208_ System corrupted: Energy discharge (-60). 05214_ Imp. Light Armor Plating destroyed. 05214_ Destroyed Imp. Light Armor Plating. 05216_ P-60 Hacker resets P-60 Hacker, system corruption cleaned. 05216_ P-60 Hacker destroyed. 05217_ Arm. Treads destroyed. 05218_ P-60 Hacker destroyed. 05220_ Lgt. Nuclear Core destroyed. 05220_ Arm. Treads destroyed. 05222_ System corrupted: Mni. Grenade Launcher failed to launch. 05223_ The unstable cave ceiling collapses. 05224_ P-60 Hacker destroyed. 05224_ Mni. Grenade Launcher destroyed. 05224_ Destroyed Mni. Grenade Launcher. 05231_ The unstable cave ceiling collapses. 05234_ Critical hit (Burn: +37). 05236_ The unstable cave ceiling collapses. Map ----- +----------------------------------------------------+ | ?????????????????????????????????# | | ?????????????????????????????????# | | ?????????????????????????????????# | | ?????????????????????????????????# | | ?????????????????????????????????# | | ?????????????????????????????????# | | ?????????????????????????????????# | | ?????????????????????????????????# | | ?????????????????????????????????# | | ?????????????????????????????????### | | ???????????????????????????????????? | | ???????????????????????????????????? | | ???????????????????????????????????? | | ???????????????????????????????????? | | ?????????????????????######????????? | | ?????????????????????#!!!!###??????? | | ?????????????????????# #??????? | | ?????????????????????#!!!!# ######## | | ?????????????????????###### " | | ??????????????????????????# #### ### | | ??????????????????????????# #??# #?? | | ???#########??????????????# #??# #?? | | ???# ##??#######????# #??# ##? | | ???# #??#""!""#????# #??#% #? | | ???# ### ######!!!####### ####"##? | | ???# @ Y; ;% % =%=[[#?? | | ???# # ####### ####### ###%#?? | | ???# #????# ##????# #?# #?? | | ???# ##????# "#????##"##?#*#?? | | ???#########?????# T#?????# #??#!### | | ?????????????????#""#?????# #### | | ?????????????????####?????# " | | ??????????????????????????####### # | | ????????????????????????????????# # | | ????????????????????????????????# # | | ????????????????????????????????# # | | ????????????????????????????????# + | | ????????????????????????????????# # | | ????????????????????????????????# # | | ????????????????????????????????# # | | ??????????????????????????????### # | | ??????????????????????????????# # | | ??????????????????????????????# < # | | ??????????????????????????????# # | | ??????????????????????????????###### | | ???????????????????????????????????? | | ???????????????????????????????????? | | ???????????????????????????????????? | | ???????????????????????????????????? | | ???????????????????????????????????? | +----------------------------------------------------+ Best States ------------- Heat Dissipation 59 Energy Generation 14 Energy Capacity 250 Matter Stores 300 Matter Capacity 300 Sight Range 20 Terrain Scan Density 10 Armor Coverage 750 Evasion (%) 42 Recoil Reduction 2 Relay Coupler Types 1 Relay Coupler Value 24 Authchip Count 11 Item Schematics ----------------- Wheel | -8/Materials | Scanalyzed Imp. Heat Sink | -8/Materials | Scanalyzed Datajack | -8/Materials | Scanalyzed Robot Schematics ------------------ O-16 Technician | -10/Materials | Hacked M-13 Machinist | -10/Materials | Hacked H-55 Commando | -8/Materials | Hacked I-25 Savior | -8/Materials | Hacked Fabricated ------------ Nothing Alien Tech Used ----------------- None Achievements -------------- None Challenges ------------ None Game ------ Seed ContainmentDynamicNullifier Manual? 0 Play Time 00:37:50 Cumulative 146.5 hours Start 2023.07.15 @ 21:53:35 End 2023.07.15 @ 22:29:35 Sessions 1 Manual Loads 0 Difficulty Rogue Special Mode None Game No. 132 Rogue 132 Adventurer 0 Explorer 0 Win Type - Total 1 Types 1/0/0/0/0/0/0/0/0 Lore% 54 Gallery% 66 Achievement% 53 Wizard Run 0 Options --------- ASCII 0 Keyboard 0 Movement Numpad Keybinds 0 Fullscreen 2 Font 18/Smallcaps Map View 76x50 Tactical HUD 1 Map Filters NONE Filters NONE Steam 1 RUN: e0028031-34fe-44e0-baae-ae0edaed4f0c